fUSD/lending_fUSD_20240530
["ID","MTS","AMOUNT","RATE_DAILY","PERIOD"]
[328226175,1717074644805,-500.0,0.00029815,7]
[328226176,1717074644815,-500.0,0.00029815,7]
[328226177,1717074644824,-500.0,0.00029815,7]
[328226178,1717074644833,-500.91787547,0.00029815,7]
[328226179,1717074644842,-500.0,0.00029816,7]
[328226180,1717074644851,-500.0,0.00029816,7]
[328226181,1717074644860,-250.0,0.00029816,7]
[328226182,1717074644869,-500.0,0.00030088,7]
[328226183,1717074644879,-500.0,0.00030088,7]
[328226184,1717074644887,-500.0,0.00030088,7]
[328226185,1717074644896,-500.0,0.00030088,7]
[328226186,1717074644906,-500.0,0.00030088,7]
[328226187,1717074644915,-192.55,0.00030088,7]
[328226188,1717074644924,-500.0,0.00030088,7]
[328226189,1717074644935,-500.0,0.00030088,7]
[328226190,1717074644944,-500.0,0.00030088,7]
[328226191,1717074644953,-500.0,0.00030088,7]
[328226192,1717074644962,-999.78,0.00030088,7]
[328226193,1717074644971,-454.55,0.00030088,7]
[328226194,1717074644980,-636.65,0.00030088,7]
[328226195,1717074644989,-500.0,0.00030088,7]
[328226196,1717074644998,-500.0,0.00030088,7]
[328226197,1717074645007,-952.74,0.00030088,7]
[328226198,1717074645017,-500.0,0.00030088,7]
[328226199,1717074645025,-500.0,0.00030088,7]
[328226200,1717074645034,-613.7,0.00030088,7]
[328226201,1717074645044,-500.0,0.00030088,7]
[328226202,1717074645053,-500.0,0.00030088,7]
[328226203,1717074645062,-500.0,0.00030088,7]
[328226204,1717074645071,-500.0,0.00030088,7]
[328226205,1717074645080,-500.0,0.00030088,7]
[328226206,1717074645089,-500.0,0.00030088,7]
[328226207,1717074645098,-500.0,0.00030088,7]
[328226208,1717074645107,-538.28,0.00030088,7]
[328226209,1717074645117,-169.0,0.00030088,7]
[328226210,1717074645126,-500.0,0.00030088,7]
[328226211,1717074645135,-261.19,0.00030088,7]
[328226212,1717074645144,-1121.16,0.00030088,7]
[328226213,1717074645153,-1439.93,0.00030088,7]
[328226214,1717074645162,-500.0,0.00030088,7]
[328226215,1717074645171,-228.56,0.00030088,7]
[328226216,1717074645181,-500.0,0.00030088,7]
[328226217,1717074645190,-500.0,0.00030088,7]
[328226218,1717074645199,-500.0,0.00030088,7]
[328226219,1717074645208,-500.0,0.00030088,7]
[328226220,1717074645218,-500.0,0.00030088,7]
[328226221,1717074645227,-500.0,0.00030088,7]
[328226222,1717074645236,-500.0,0.00030088,7]
[328226223,1717074645245,-500.0,0.00030089,7]
[328226224,1717074645254,-330.7,0.00030089,7]
[328226225,1717074645263,-500.0,0.00030089,7]
[328226226,1717074645272,-500.0,0.00030089,7]
[328226227,1717074645281,-500.0,0.00030089,7]
[328226228,1717074645291,-500.0,0.00030089,7]
[328226229,1717074645300,-500.0,0.00030089,7]
[328226230,1717074645311,-405.81671901,0.00030089,7]
[328226231,1717074645323,-500.0,0.00030089,7]
[328226232,1717074645332,-337.32,0.00030089,7]
[328226233,1717074645342,-500.0,0.00030089,7]
[328226234,1717074645352,-500.0,0.00030089,7]
[328226235,1717074645361,-500.0,0.00030089,7]
[328226236,1717074645370,-207.49453324,0.00030089,7]
[328226237,1717074645379,-500.0,0.00030089,7]
[328226238,1717074645391,-500.0,0.00030089,7]
[328226239,1717074645400,-500.0,0.00030089,7]
[328226240,1717074645409,-500.0,0.00030089,7]
[328226241,1717074645419,-500.0,0.00030089,7]
[328226242,1717074645428,-505.35,0.00030089,7]
[328226243,1717074645437,-534.85448935,0.00030089,7]
[328226244,1717074645445,-500.0,0.00030089,7]
[328226245,1717074645454,-500.0,0.00030089,7]
[328226246,1717074645463,-500.0,0.00030089,7]
[328226247,1717074645473,-500.0,0.00030089,7]
[328226248,1717074645483,-500.0,0.00030089,7]
[328226249,1717074645492,-500.0,0.00030089,7]
[328226250,1717074645501,-500.0,0.00030089,7]
[328226251,1717074645510,-500.0,0.00030089,7]
[328226252,1717074645519,-500.0,0.00030089,7]
[328226253,1717074645528,-500.0,0.00030089,7]
[328226254,1717074645537,-500.0,0.00030089,7]
[328226255,1717074645546,-500.0,0.00030089,7]
[328226256,1717074645556,-515.68660031,0.00030089,7]
[328226257,1717074645565,-500.0,0.00030089,7]
[328226258,1717074645575,-500.0,0.00030089,7]
[328226259,1717074645584,-500.0,0.00030089,7]
[328226260,1717074645593,-500.0,0.00030089,7]
[328226261,1717074645602,-500.0,0.00030089,7]
[328226262,1717074645611,-500.0,0.00030089,7]
[328226263,1717074645621,-309.47670267,0.00030089,7]
[328226264,1717074645630,-500.0,0.00030089,7]
[328226265,1717074645639,-500.0,0.00030089,7]
[328226266,1717074645649,-429.6850231,0.00030089,7]
[328226267,1717074645789,-956.3,0.00030089,7]
[328226268,1717074645799,-500.0,0.00030089,7]
[328226269,1717074645808,-500.0,0.00030089,7]
[328226270,1717074645817,-500.0,0.00030089,7]
[328226271,1717074645827,-500.0,0.00030089,7]
[328226272,1717074645836,-500.0,0.00030089,7]
[328226273,1717074645845,-500.0,0.00030089,7]
[328226274,1717074645854,-500.0,0.00030089,7]
[328226275,1717074645863,-833.52,0.00030089,7]
[328226276,1717074645873,-500.0,0.00030089,7]
[328226277,1717074645882,-500.0,0.00030089,7]
[328226278,1717074645891,-500.0,0.00030089,7]
[328226279,1717074645900,-500.0,0.00030089,7]
[328226280,1717074645909,-500.0,0.00030089,7]
[328226281,1717074645918,-500.0,0.00030089,7]
[328226282,1717074645929,-500.0,0.00030089,7]
[328226283,1717074645938,-500.0,0.00030089,7]
[328226284,1717074645947,-500.0,0.00030089,7]
[328226285,1717074645956,-500.0,0.00030089,7]
[328226286,1717074645965,-500.0,0.00030089,7]
[328226287,1717074645975,-500.0,0.00030089,7]
[328226288,1717074645984,-500.0,0.00030089,7]
[328226289,1717074645993,-500.0,0.00030089,7]
[328226290,1717074646002,-500.0,0.00030089,7]
[328226291,1717074646011,-500.0,0.00030089,7]
[328226292,1717074646020,-500.0,0.00030089,7]
[328226293,1717074646029,-500.0,0.00030089,7]
[328226294,1717074646038,-500.0,0.00030089,7]
[328226295,1717074646048,-500.0,0.00030089,7]
[328226296,1717074646057,-500.0,0.00030089,7]
[328226297,1717074646066,-500.0,0.00030089,7]
[328226298,1717074646076,-500.0,0.00030089,7]
[328226299,1717074646085,-500.0,0.00030089,7]
[328226300,1717074646094,-500.0,0.00030089,7]
[328226301,1717074646103,-500.0,0.00030089,7]
[328226302,1717074646112,-500.0,0.00030089,7]
[328226303,1717074646121,-500.0,0.00030089,7]
[328226304,1717074646131,-500.0,0.00030089,7]
[328226305,1717074646140,-500.0,0.00030089,7]
[328226306,1717074646151,-500.0,0.00030089,7]
[328226307,1717074646160,-500.0,0.00030089,7]
[328226308,1717074646169,-215.04,0.00030089,7]
[328226309,1717074646179,-503.45,0.00030089,7]
[328226310,1717074646188,-500.0,0.00030089,7]
[328226311,1717074646197,-500.0,0.00030089,7]
[328226312,1717074646208,-640.76,0.00030089,7]
[328226313,1717074646216,-500.0,0.00030089,7]
[328226314,1717074646226,-480.58,0.00030089,7]
[328226315,1717074646235,-500.0,0.0003009,7]
[328226316,1717074646245,-500.0,0.0003009,7]
[328226317,1717074646255,-250.0,0.0003009,7]
[328226318,1717074646265,-2595.55757978,0.00030213,2]
[328226319,1717074646275,-321.06585346,0.00030262,2]
[328226320,1717074646284,-500.0,0.00030362,7]
[328226321,1717074646294,-500.0,0.00030362,7]
[328226322,1717074646304,-500.0,0.00030362,7]
[328226323,1717074646317,-500.0,0.00030362,7]
[328226324,1717074646328,-500.0,0.00030362,7]
[328226325,1717074646337,-500.0,0.00030362,7]
[328226326,1717074646347,-500.0,0.00030362,7]
[328226327,1717074646358,-500.0,0.00030362,7]
[328226328,1717074646368,-500.0,0.00030362,7]
[328226329,1717074646378,-999.78,0.00030362,7]
[328226330,1717074646389,-500.0,0.00030362,7]
[328226331,1717074646399,-500.0,0.00030362,7]
[328226332,1717074646409,-952.74,0.00030362,7]
[328226333,1717074646422,-500.0,0.00030362,7]
[328226334,1717074646432,-500.0,0.00030362,7]
[328226335,1717074646442,-500.0,0.00030362,7]
[328226336,1717074646451,-500.0,0.00030362,7]
[328226337,1717074646460,-267.15,0.00030362,7]
[328226338,1717074646470,-500.0,0.00030362,7]
[328226339,1717074646479,-500.0,0.00030362,7]
[328226340,1717074646489,-500.0,0.00030362,7]
[328226341,1717074646497,-500.0,0.00030362,7]
[328226342,1717074646507,-538.28,0.00030362,7]
[328226343,1717074646516,-500.0,0.00030362,7]
[328226344,1717074646526,-1121.16,0.00030362,7]
[328226345,1717074646536,-1439.93,0.00030362,7]
[328226346,1717074646544,-500.0,0.00030362,7]
[328226347,1717074646553,-500.0,0.00030362,7]
[328226348,1717074646562,-500.0,0.00030362,7]
[328226349,1717074646574,-500.0,0.00030362,7]
[328226350,1717074646584,-306.56,0.00030362,7]
[328226351,1717074646593,-500.0,0.00030362,7]
[328226352,1717074646603,-500.0,0.00030362,7]
[328226353,1717074646612,-500.0,0.00030362,7]
[328226354,1717074646621,-477.18,0.00030363,7]
[328226355,1717074646631,-500.0,0.00030363,7]
[328226356,1717074646640,-500.0,0.00030363,7]
[328226357,1717074646649,-500.0,0.00030363,7]
[328226358,1717074646659,-235.94,0.00030363,7]
[328226359,1717074646669,-500.0,0.00030363,7]
[328226360,1717074646679,-500.0,0.00030363,7]
[328226361,1717074646688,-500.0,0.00030363,7]
[328226362,1717074646697,-459.35,0.00030363,7]
[328226363,1717074646706,-531.66154763,0.00030363,7]
[328226364,1717074646715,-500.0,0.00030363,7]
[328226365,1717074646724,-500.0,0.00030363,7]
[328226366,1717074646733,-500.0,0.00030363,7]
[328226367,1717074646742,-500.0,0.00030363,7]
[328226368,1717074646751,-505.35,0.00030363,7]
[328226369,1717074646760,-500.0,0.00030363,7]
[328226370,1717074646769,-500.0,0.00030363,7]
[328226371,1717074646777,-500.0,0.00030363,7]
[328226372,1717074646786,-187.44,0.00030363,7]
[328226373,1717074646795,-500.0,0.00030363,7]
[328226374,1717074646804,-500.0,0.00030363,7]
[328226375,1717074646813,-500.0,0.00030363,7]
[328226376,1717074646822,-500.0,0.00030363,7]
[328226377,1717074646831,-500.0,0.00030363,7]
[328226378,1717074646840,-500.0,0.00030363,7]
[328226379,1717074646849,-500.0,0.00030363,7]
[328226380,1717074646858,-500.0,0.00030363,7]
[328226381,1717074646867,-500.0,0.00030363,7]
[328226382,1717074646876,-500.0,0.00030363,7]
[328226383,1717074646886,-500.0,0.00030363,7]
[328226384,1717074646895,-271.7,0.00030363,7]
[328226385,1717074646904,-511.98,0.00030363,7]
[328226386,1717074646913,-500.0,0.00030363,7]
[328226387,1717074646922,-196.69577601,0.00030363,7]
[328226388,1717074646932,-500.0,0.00030363,7]
[328226389,1717074646941,-956.3,0.00030363,7]
[328226390,1717074646951,-500.0,0.00030363,7]
[328226391,1717074646960,-500.0,0.00030363,7]
[328226392,1717074646969,-500.0,0.00030363,7]
[328226393,1717074646979,-500.0,0.00030363,7]
[328226394,1717074646988,-500.0,0.00030363,7]
[328226395,1717074646998,-500.0,0.00030363,7]
[328226396,1717074647008,-833.52,0.00030363,7]
[328226397,1717074647017,-500.0,0.00030363,7]
[328226398,1717074647026,-500.0,0.00030363,7]
[328226399,1717074647036,-500.0,0.00030363,7]
[328226400,1717074647045,-180.98796743,0.00030363,7]
[328226401,1717074647055,-478.08,0.00030363,7]
[328226402,1717074647064,-281.67,0.00030363,7]
[328226403,1717074647073,-500.0,0.00030363,7]
[328226404,1717074647082,-500.0,0.00030363,7]
[328226405,1717074647091,-500.0,0.00030363,7]
[328226406,1717074647101,-500.0,0.00030363,7]
[328226407,1717074647110,-500.0,0.00030363,7]
[328226408,1717074647120,-564.75,0.00030363,7]
[328226409,1717074647130,-500.0,0.00030363,7]
[328226410,1717074647140,-500.0,0.00030363,7]
[328226411,1717074647150,-302.21854061,0.00030363,7]
[328226412,1717074647159,-500.0,0.00030363,7]
[328226413,1717074647169,-500.0,0.00030363,7]
[328226414,1717074647178,-276.36,0.00030363,7]
[328226415,1717074647187,-648.6,0.00030363,7]
[328226416,1717074647197,-500.0,0.00030363,7]
[328226417,1717074647206,-500.0,0.00030363,7]
[328226418,1717074647216,-500.0,0.00030363,7]
[328226419,1717074647225,-209.1,0.00030363,7]
[328226420,1717074647234,-500.0,0.00030364,7]
[328226421,1717074647244,-500.0,0.00030364,7]
[328226422,1717074647254,-250.0,0.00030364,7]
[328226423,1717074647263,-510.66,0.00030599,2]
[328226424,1717074647273,-500.0,0.00030636,7]
[328226425,1717074647283,-500.0,0.00030636,7]
[328226426,1717074647292,-500.0,0.00030636,7]
[328226427,1717074647301,-500.0,0.00030636,7]
[328226428,1717074647315,-500.0,0.00030636,7]
[328226429,1717074647323,-500.0,0.00030636,7]
[328226430,1717074647333,-500.0,0.00030636,7]
[328226431,1717074647342,-500.0,0.00030636,7]
[328226432,1717074647353,-500.0,0.00030636,7]
[328226433,1717074647362,-999.78,0.00030636,7]
[328226434,1717074647371,-500.0,0.00030636,7]
[328226435,1717074647380,-500.0,0.00030636,7]
[328226436,1717074647390,-952.74,0.00030636,7]
[328226437,1717074647399,-500.0,0.00030636,7]
[328226438,1717074647408,-500.0,0.00030636,7]
[328226439,1717074647417,-500.0,0.00030636,7]
[328226440,1717074647426,-500.0,0.00030636,7]
[328226441,1717074647436,-500.0,0.00030636,7]
[328226442,1717074647445,-523.11,0.00030636,7]
[328226443,1717074647454,-500.0,0.00030636,7]
[328226444,1717074647463,-500.0,0.00030636,7]
[328226445,1717074647472,-538.28,0.00030636,7]
[328226446,1717074647481,-500.0,0.00030636,7]
[328226447,1717074647490,-1121.16,0.00030636,7]
[328226448,1717074647499,-1439.93,0.00030636,7]
[328226449,1717074647508,-500.0,0.00030636,7]
[328226450,1717074647517,-500.0,0.00030636,7]
[328226451,1717074647526,-500.0,0.00030636,7]
[328226452,1717074647535,-500.0,0.00030636,7]
[328226453,1717074647544,-500.0,0.00030636,7]
[328226454,1717074647553,-165.58,0.00030636,7]
[328226455,1717074647562,-500.0,0.00030636,7]
[328226456,1717074647571,-500.0,0.00030637,7]
[328226457,1717074647580,-500.0,0.00030637,7]
[328226458,1717074647589,-500.0,0.00030637,7]
[328226459,1717074647598,-244.63,0.00030637,7]
[328226460,1717074647607,-500.0,0.00030637,7]
[328226461,1717074647616,-179.46085527,0.00030637,7]
[328226462,1717074647626,-500.0,0.00030637,7]
[328226463,1717074647635,-500.0,0.00030637,7]
[328226464,1717074647644,-500.0,0.00030637,7]
[328226465,1717074647654,-500.0,0.00030637,7]
[328226466,1717074647664,-505.35,0.00030637,7]
[328226467,1717074647673,-500.0,0.00030637,7]
[328226468,1717074647683,-500.0,0.00030637,7]
[328226469,1717074647692,-500.0,0.00030637,7]
[328226470,1717074647701,-500.0,0.00030637,7]
[328226471,1717074647711,-500.0,0.00030637,7]
[328226472,1717074647722,-500.0,0.00030637,7]
[328226473,1717074647732,-500.0,0.00030637,7]
[328226474,1717074647742,-500.0,0.00030637,7]
[328226475,1717074647750,-500.0,0.00030637,7]
[328226476,1717074647760,-500.0,0.00030637,7]
[328226477,1717074647769,-500.0,0.00030637,7]
[328226478,1717074647778,-500.0,0.00030637,7]
[328226479,1717074647787,-331.5323839,0.00030637,7]
[328226480,1717074647796,-500.0,0.00030637,7]
[328226481,1717074647806,-500.0,0.00030637,7]
[328226482,1717074647815,-348.16,0.00030637,7]
[328226483,1717074647824,-956.3,0.00030637,7]
[328226484,1717074647833,-355.92,0.00030637,7]
[328226485,1717074647842,-494.9,0.00030637,7]
[328226486,1717074647851,-500.0,0.00030637,7]
[328226487,1717074647860,-833.52,0.00030637,7]
[328226488,1717074647870,-500.0,0.00030637,7]
[328226489,1717074647879,-449.7,0.00030637,7]
[328226490,1717074647888,-174.97,0.00030637,7]
[328226491,1717074647897,-191.58567262,0.00030637,7]
[328226492,1717074647906,-367.11424699,0.00030637,7]
[328226493,1717074647915,-526.72,0.00030637,7]
[328226494,1717074647925,-500.0,0.00030637,7]
[328226495,1717074647935,-500.0,0.00030637,7]
[328226496,1717074647944,-235.09,0.00030637,7]
[328226497,1717074647953,-500.0,0.00030637,7]
[328226498,1717074647964,-500.0,0.00030638,7]
[328226499,1717074647974,-500.0,0.00030638,7]
[328226500,1717074647985,-250.0,0.00030638,7]
[328226501,1717074647996,-2595.55757978,0.00030711,2]
[328226502,1717074648005,-500.0,0.0003091,7]
[328226503,1717074648015,-500.0,0.0003091,7]
[328226504,1717074648025,-500.0,0.0003091,7]
[328226505,1717074648034,-500.0,0.0003091,7]
[328226506,1717074648043,-500.0,0.0003091,7]
[328226507,1717074648052,-500.0,0.0003091,7]
[328226508,1717074648061,-500.0,0.0003091,7]
[328226509,1717074648070,-500.0,0.0003091,7]
[328226510,1717074648079,-414.54,0.0003091,7]
[328226511,1717074648088,-999.78,0.0003091,7]
[328226512,1717074648098,-500.0,0.0003091,7]
[328226513,1717074648106,-500.0,0.0003091,7]
[328226514,1717074648116,-952.74,0.0003091,7]
[328226515,1717074648125,-500.0,0.0003091,7]
[328226516,1717074648134,-465.15,0.0003091,7]
[328226517,1717074648144,-500.0,0.0003091,7]
[328226518,1717074648154,-500.0,0.0003091,7]
[328226519,1717074648163,-500.0,0.0003091,7]
[328226520,1717074648172,-500.0,0.0003091,7]
[328226521,1717074648183,-500.0,0.0003091,7]
[328226522,1717074648192,-538.28,0.0003091,7]
[328226523,1717074648201,-500.0,0.0003091,7]
[328226524,1717074648209,-1121.16,0.0003091,7]
[328226525,1717074648218,-1439.93,0.0003091,7]
[328226526,1717074648227,-500.0,0.0003091,7]
[328226527,1717074648237,-500.0,0.0003091,7]
[328226528,1717074648246,-355.48,0.0003091,7]
[328226529,1717074648255,-500.0,0.0003091,7]
[328226530,1717074648264,-500.0,0.0003091,7]
[328226531,1717074648273,-486.99288138,0.0003091,7]
[328226532,1717074648282,-500.0,0.00030911,7]
[328226533,1717074648291,-500.0,0.00030911,7]
[328226534,1717074648300,-500.0,0.00030911,7]
[328226535,1717074648310,-500.0,0.00030911,7]
[328226536,1717074648324,-500.0,0.00030911,7]
[328226537,1717074648333,-500.0,0.00030911,7]
[328226538,1717074648342,-505.35,0.00030911,7]
[328226539,1717074648351,-500.0,0.00030911,7]
[328226540,1717074648362,-500.0,0.00030911,7]
[328226541,1717074648371,-500.0,0.00030911,7]
[328226542,1717074648380,-543.85,0.00030911,7]
[328226543,1717074648390,-486.98731202,0.00030911,7]
[328226544,1717074648399,-500.0,0.00030911,7]
[328226545,1717074648408,-500.0,0.00030911,7]
[328226546,1717074648417,-956.3,0.00030911,7]
[328226547,1717074648426,-500.0,0.00030911,7]
[328226548,1717074648437,-833.52,0.00030911,7]
[328226549,1717074648447,-435.74,0.00030911,7]
[328226550,1717074648456,-401.39,0.00030911,7]
[328226551,1717074648465,-500.0,0.00030911,7]
[328226552,1717074648474,-436.79,0.00030911,7]
[328226553,1717074648484,-500.0,0.00030912,7]
[328226554,1717074648492,-250.0,0.00030912,7]
[328226555,1717074648502,-233.97,0.00030996,2]
[328226556,1717074648511,-205.14,0.00031184,7]
[328226557,1717074648521,-500.0,0.00031184,7]
[328226558,1717074648530,-500.0,0.00031184,7]
[328226559,1717074648539,-500.0,0.00031184,7]
[328226560,1717074648549,-500.0,0.00031184,7]
[328226561,1717074648558,-500.0,0.00031184,7]
[328226562,1717074648567,-231.38,0.00031184,7]
[328226563,1717074648577,-500.0,0.00031184,7]
[328226564,1717074648586,-999.78,0.00031184,7]
[328226565,1717074648595,-500.0,0.00031184,7]
[328226566,1717074648605,-500.0,0.00031184,7]
[328226567,1717074648614,-952.74,0.00031184,7]
[328226568,1717074648623,-500.0,0.00031184,7]
[328226569,1717074648632,-500.0,0.00031184,7]
[328226570,1717074648641,-500.0,0.00031184,7]
[328226571,1717074648650,-500.0,0.00031184,7]
[328226572,1717074648660,-500.0,0.00031184,7]
[328226573,1717074648669,-500.0,0.00031184,7]
[328226574,1717074648681,-538.28,0.00031184,7]
[328226575,1717074648690,-500.0,0.00031184,7]
[328226576,1717074648699,-1121.16,0.00031184,7]
[328226577,1717074648708,-1439.93,0.00031184,7]
[328226578,1717074648717,-500.0,0.00031184,7]
[328226579,1717074648726,-500.0,0.00031184,7]
[328226580,1717074648735,-167.02,0.00031184,7]
[328226581,1717074648745,-500.0,0.00031184,7]
[328226582,1717074648753,-485.19854009,0.00031185,7]
[328226583,1717074648762,-500.0,0.00031185,7]
[328226584,1717074648771,-500.0,0.00031185,7]
[328226585,1717074648780,-500.0,0.00031185,7]
[328226586,1717074648790,-500.0,0.00031185,7]
[328226587,1717074648800,-500.0,0.00031185,7]
[328226588,1717074648809,-505.35,0.00031185,7]
[328226589,1717074648819,-500.0,0.00031185,7]
[328226590,1717074648828,-500.0,0.00031185,7]
[328226591,1717074648839,-447.45,0.00031185,7]
[328226592,1717074648848,-500.0,0.00031185,7]
[328226593,1717074648858,-500.0,0.00031185,7]
[328226594,1717074648868,-956.3,0.00031185,7]
[328226595,1717074648877,-500.0,0.00031185,7]
[328226596,1717074648888,-833.52,0.00031185,7]
[328226597,1717074648899,-286.44,0.00031185,7]
[328226598,1717074648908,-500.0,0.00031186,7]
[328226599,1717074648918,-250.0,0.00031186,7]
[328226600,1717074648927,-2595.55757978,0.00031209,2]
[328226601,1717074648938,-500.0,0.00031365,2]
[328226602,1717074648947,-500.0,0.00031458,7]
[328226603,1717074648956,-500.0,0.00031458,7]
[328226604,1717074648966,-500.0,0.00031458,7]
[328226605,1717074648975,-500.0,0.00031458,7]
[328226606,1717074648985,-500.0,0.00031458,7]
[328226607,1717074648994,-500.0,0.00031458,7]
[328226608,1717074649003,-999.78,0.00031458,7]
[328226609,1717074649012,-500.0,0.00031458,7]
[328226610,1717074649022,-500.0,0.00031458,7]
[328226611,1717074649032,-952.74,0.00031458,7]
[328226612,1717074649041,-500.0,0.00031458,7]
[328226613,1717074649050,-500.0,0.00031458,7]
[328226614,1717074649059,-500.0,0.00031458,7]
[328226615,1717074649068,-500.0,0.00031458,7]
[328226616,1717074649077,-500.0,0.00031458,7]
[328226617,1717074649086,-500.0,0.00031458,7]
[328226618,1717074649095,-538.28,0.00031458,7]
[328226619,1717074649103,-500.0,0.00031458,7]
[328226620,1717074649112,-1121.16,0.00031458,7]
[328226621,1717074649245,-1439.93,0.00031458,7]
[328226622,1717074649255,-500.0,0.00031458,7]
[328226623,1717074649265,-500.0,0.00031458,7]
[328226624,1717074649275,-500.0,0.00031458,7]
[328226625,1717074649284,-500.0,0.00031459,7]
[328226626,1717074649294,-348.38931633,0.00031459,7]
[328226627,1717074649303,-500.0,0.00031459,7]
[328226628,1717074649315,-500.0,0.00031459,7]
[328226629,1717074649325,-500.0,0.00031459,7]
[328226630,1717074649334,-505.35,0.00031459,7]
[328226631,1717074649344,-500.0,0.00031459,7]
[328226632,1717074649355,-500.0,0.00031459,7]
[328226633,1717074649364,-500.0,0.00031459,7]
[328226634,1717074649373,-500.0,0.00031459,7]
[328226635,1717074649383,-956.3,0.00031459,7]
[328226636,1717074649394,-500.0,0.00031459,7]
[328226637,1717074649403,-833.52,0.00031459,7]
[328226638,1717074649413,-500.0,0.0003146,7]
[328226639,1717074649422,-250.0,0.0003146,7]
[328226640,1717074649433,-440.0,0.00031698,2]
[328226641,1717074649443,-2595.55757978,0.00031706,2]
[328226642,1717074649452,-500.0,0.00031732,7]
[328226643,1717074649462,-500.0,0.00031732,7]
[328226644,1717074649472,-500.0,0.00031732,7]
[328226645,1717074649481,-500.0,0.00031732,7]
[328226646,1717074649490,-500.0,0.00031732,7]
[328226647,1717074649499,-500.0,0.00031732,7]
[328226648,1717074649509,-999.78,0.00031732,7]
[328226649,1717074649518,-500.0,0.00031732,7]
[328226650,1717074649527,-500.0,0.00031732,7]
[328226651,1717074649537,-952.74,0.00031732,7]
[328226652,1717074649546,-500.0,0.00031732,7]
[328226653,1717074649556,-190.02,0.00031732,7]
[328226654,1717074649565,-500.0,0.00031732,7]
[328226655,1717074649576,-500.0,0.00031732,7]
[328226656,1717074649586,-500.0,0.00031732,7]
[328226657,1717074649595,-500.0,0.00031732,7]
[328226658,1717074649605,-538.28,0.00031732,7]
[328226659,1717074649614,-500.0,0.00031732,7]
[328226660,1717074649623,-1121.16,0.00031732,7]
[328226661,1717074649633,-1439.93,0.00031732,7]
[328226662,1717074649643,-500.0,0.00031732,7]
[328226663,1717074649652,-500.0,0.00031732,7]
[328226664,1717074649662,-500.0,0.00031732,7]
[328226665,1717074649671,-500.0,0.00031733,7]
[328226666,1717074649680,-500.0,0.00031733,7]
[328226667,1717074649690,-500.0,0.00031733,7]
[328226668,1717074649699,-500.0,0.00031733,7]
[328226669,1717074649708,-505.35,0.00031733,7]
[328226670,1717074649717,-500.0,0.00031733,7]
[328226671,1717074649726,-500.0,0.00031733,7]
[328226672,1717074649736,-500.0,0.00031733,7]
[328226673,1717074649745,-245.2,0.00031733,7]
[328226674,1717074649754,-956.3,0.00031733,7]